Cogmind - Beta 16 @@@ ROGUE MODE // 2026.01.25 @ 18:32:08 Player: Warped Result: Destroyed self via exploding Nuclear Reactor Performance ------------- Evolutions (0) 0 Regions Visited (1) 200 Robots Destroyed (22) 110 Value Destroyed (574) 574 Prototype IDs (0) 0 Alien Tech Used (0) 0 Bonus (0) 0 TOTAL SCORE: 884 Bonus ------- None Cogmind --------- Core Integrity 0/250 Matter 300/300 Energy 94/100 System Corruption 0% Temperature Cool (0) Movement Core (1400) Ox27 Location -10/Materials Parts ------- > --- POWER (1) -------- (None) > --- PROPULSION (2) --- (None) > --- UTILITY (2) ------ Improved Heat Sink Huge Storage Unit > --- WEAPON (2) ------- Medium Laser > --- INVENTORY (25) --- Light Ion Engine Aluminum Leg Improved Heat Sink Medium Battery (150) Sensor Array Signal Interpreter Improved Terrain Scanner Datajack Hammer Peak State ------------ > --- POWER ------------ Light Ion Engine > --- PROPULSION ------- Aluminum Leg Aluminum Leg > --- UTILITY ---------- Improved Heat Sink Improved Terrain Scanner > --- WEAPON ----------- Medium Laser Assault Rifle > --- INVENTORY -------- Light Ion Engine Aluminum Leg Grenade Launcher [Rating: 11] Favorites ----------- Power Light Ion Engine Engine Light Ion Engine Power Core Light Nuclear Core Propulsion Aluminum Leg Leg Aluminum Leg Wheel Compact Wheel Utility Improved Heat Sink Device Improved Heat Sink Storage Huge Storage Unit Hackware Hacking Suite Weapon Medium Laser Energy Gun Medium Laser Ballistic Gun Assault Rifle Launcher Grenade Launcher Build | -11 -10 ------- Run | Yrd Mat Slots Evolved . | . . Power . | . . Propulsion . | . . Utility . | . . Weapon . | . . Parts Attached 23 | 7 16 Power 4 | 1 3 Engine 3 | 1 2 Core 1 | . 1 Reactor . | . . Propulsion 8 | 2 6 Treads . | . . Leg 5 | 2 3 Wheel 3 | . 3 Hover . | . . Flight . | . . Utility 6 | 2 4 Device 2 | 1 1 Storage 3 | 1 2 Processor . | . . Hackware 1 | . 1 Protection . | . . Artifact . | . . Weapon 5 | 2 3 Energy Gun 2 | . 2 Energy Cannon . | . . Ballistic Gun 2 | 2 . Ballistic Cannon . | . . Launcher 1 | . 1 Special Weapon . | . . Impact Weapon . | . . Slashing Weapon . | . . Piercing Weapon . | . . Special Melee Weapon . | . . Unidentified Prototypes . | . . Parts Lost 7 | . 7 Power 1 | . 1 Propulsion 3 | . 3 Utility . | . . Weapon 3 | . 3 Highest Loss Streak 2 | . 2 To Critical Strikes . | . . Average Backups 5 | . 6 Power . | . . Propulsion . | . 1 Utility 3 | . 4 Weapon 1 | . 1 Tool/Special . | . . Unused Backups 10 | . 10 Power . | . . Propulsion 1 | . 1 Utility 7 | . 7 Weapon 1 | . 1 Tool/Special 1 | . 1 Average Slot Usage (%) 89 | . 89 Engine 10 | . 10 Core 3 | . 3 Leg 10 | . 10 Wheel 12 | . 12 Device 14 | . 14 Storage 12 | . 12 Energy Gun 12 | . 12 Ballistic Gun 4 | . 4 Launcher 6 | . 6 Peak Build Rating 11 | 9 11 Average Rating 8 | 5 9 On Entrance 4 | . 9 Avg Prop Armor Cover (%) 9 | . 9 Naked Turns . | . . Heaviest Build 91 | 9 91 Greatest Support 32 | 20 32 Greatest Overweight (x) 8 | . 8 Average Overweight (x) 1 | . 2 Largest Inventory Capacity 25 | 5 25 Average Capacity 17 | 5 20 Most Carried 9 | 2 9 Average Carried 5 | . 6 Final Capacity 25 | 5 25 Final Carried 9 | 2 9 Class Distribution -------------------- 100% | Mutant Dominant Class ---------------- Mutant | -10/Materials Resources | -11 -10 ----------- Run | Yrd Mat Matter Collected 632 | 422 210 Remotely . | . . Salvage Created 796 | 113 683 Parts 37 | 6 31 Haulers Intercepted 1 | . 1 Recyclers Shooed 2 | . 2 Parts Field Recycled . | . . Retrieved Matter . | . . Parts Self-Destructed . | . . Prevented . | . . Parts Restored . | . . Kills | -11 -10 ------- Run | Yrd Mat Combat Hostiles Destroyed 13 | 1 12 Guns 10 | 1 9 AOE 3 | . 3 Classes Destroyed 7 | 3 4 Worker 2 | 1 1 Tunneler 3 | 2 1 Hauler 1 | . 1 Recycler 1 | . 1 Operator 1 | . 1 Watcher 1 | . 1 Grunt 13 | 1 12 Best Kill Streak 3 | 2 3 Combat Bots Only 2 | 1 2 Max Kills in Single Turn 2 | 2 2 Gunslinging . | . . Exploded 2 | . 2 Melee . | . . Uniques/NPCs Destroyed . | . . Combat | -11 -10 -------- Run | Yrd Mat Hostile Shots Fired 96 | 11 85 Missed 27 | 4 23 Hits 69 | 7 62 Projectile 69 | 7 62 Damage Taken 1050 | 73 977 Core 342 | . 342 Absorbed by Shields . | . . Core Remaining (%) 100 | 100 . Volleys Fired 99 | 17 82 Largest 2 | 2 2 Hottest 100 | 40 100 Shots Fired 134 | 34 100 Gun 134 | 34 100 Cannon . | . . Launcher . | . . Special . | . . Kinetic 64 | 34 30 Thermal 70 | . 70 Explosive . | . . Electromagnetic . | . . Robot Hit Streak 13 | 5 13 Robot Miss Streak 5 | 3 5 Penetration Max . | . . Secondary Targets 1 | . 1 Max Gunslinging Chain 1 | . 1 Shots Hit Robots 90 | 18 72 Core Hits 36 | 5 31 Critical Kills . | . . Critical Parts Destroyed 1 | . 1 Critical Strikes 4 | . 4 Burn 3 | . 3 Destroy 1 | . 1 Melee Attacks . | . . Impact . | . . Slashing . | . . Piercing . | . . Sneak Attacks . | . . Combat Hostiles . | . . Follow-up Attacks . | . . Damage Inflicted 1441 | 253 1188 Guns 1138 | 253 885 Cannons . | . . Explosions 303 | . 303 Melee . | . . Ramming . | . . Kinetic 496 | 253 243 Thermal 834 | . 834 Explosive 111 | . 111 Electromagnetic . | . . Impact . | . . Slashing . | . . Piercing . | . . Highest Corruption . | . . Average Corruption . | . . Corruption Purged . | . . Corruption Blocked . | . . Overload Shots . | . . Overflow Damage 103 | . 103 Projectiles . | . . Explosions 103 | . 103 Melee . | . . Knockbacks . | . . Impact . | . . Kinetic . | . . Secondary . | . . Self-Inflicted Damage 211 | . 211 Shots 2 | . 2 Rammed . | . . Targets Rammed . | . . Kicked . | . . Crushed . | . . Highest Temperature 113 | . 113 Average Temperature 25 | . 25 Received Heat Transfer 465 | 42 423 Siege Activations . | . . Martial Activations . | . . Shielding Activations . | . . Robots Disrupted . | . . Combat Hostiles . | . . Robots Corrupted . | . . Combat Hostiles . | . . Parts Fried . | . . Impact Corruptions . | . . Robots Melted . | . . Combat Hostiles . | . . Parts Melted 5 | . 5 Heat Transferred 2209 | . 2209 Parts Sabotaged . | . . Parts Stolen . | . . Parts Stripped . | . . Power Chain Reactions . | . . Alert | -11 -10 ------- Run | Yrd Mat Maximum Alert Level . | . . Low Security (%) 100 | 100 100 Level 1 . | . . Level 2 . | . . Level 3 . | . . Level 4 . | . . Level 5 . | . . High Security . | . . Max Security . | . . Peak Influence 85 | 20 85 Initial . | . . Average 24 | 2 29 Influence Increases 446 | 36 410 Destroy 0b10 Robot/C 260 | 20 240 Destroy 0b10 Robot/NC 45 | 15 30 Destroy Leader 74 | . 74 Disable Machine 45 | . 45 Destroy Structure 22 | 1 21 Influence Decreases 401 | 36 365 Time Decay 358 | 36 322 Lost Part 43 | . 43 Squads Dispatched 4 | . 4 Investigation 2 | . 2 Extermination . | . . Reinforcement 2 | . 2 Assault . | . . Garrison . | . . Intercept . | . . Searches Triggered . | . . Construction Impeded . | . . Haulers Reinforced . | . . Active Scanning Responses . | . . Cargo Convoy Interrupts . | . . Stealth | -11 -10 --------- Run | Yrd Mat Distress Signals 2 | . 2 Communications Jammed . | . . Distress Signals . | . . Times Spotted 24 | 1 23 Peak Tracking Total 4 | 1 4 Tactical Retreats . | . . Traps | -11 -10 ------- Run | Yrd Mat Traps Triggered 1 | . 1 Indirectly . | . . Trap Hack Attempts . | . . Triggered . | . . Disarmed . | . . Reprogrammed . | . . Reused . | . . Traps Extracted . | . . Installed . | . . Triggered . | . . Machines | -11 -10 ---------- Run | Yrd Mat Machines Disabled 3 | . 3 Max in Single Turn 2 | . 2 Machines Repaired . | . . Machines Dismantled . | . . Machines Sabotaged . | . . Overloaded Fab Kills . | . . Hacking | -11 -10 --------- Run | Yrd Mat Machines Accessed 2 | . 2 Terminals 2 | . 2 Fabricators . | . . Repair Stations . | . . Recycling Units . | . . Scanalyzers . | . . Garrison Access . | . . Total Hacks 5 | . 5 Successful 1 | . 1 Failed 4 | . 4 Catastrophic . | . . Database Lockouts . | . . Manual . | . . Terminals 5 | . 5 Fabricators . | . . Repair Stations . | . . Recycling Units . | . . Scanalyzers . | . . Garrison Access . | . . Terminal Hacks 1 | . 1 Record 1 | . 1 Fabricator Hacks . | . . Repair Station Hacks . | . . Recycling Unit Hacks . | . . Scanalyzer . | . . Garrison Access Hacks . | . . Unauthorized Hacks . | . . Terminals . | . . Fabricators . | . . Repair Stations . | . . Recycling Units . | . . Scanalyzers . | . . Garrison Access . | . . Data Cores Recovered . | . . Used . | . . Hacking Detections 2 | . 2 Full Trace Events 1 | . 1 Feedback Events . | . . Feedback Blocked . | . . Robot Schematics Acquired . | . . Robots Built . | . . Authchips . | . . Time . | . . Total Robot Build Rating . | . . Part Schematics Acquired . | . . Parts Built . | . . Authchips . | . . Time . | . . Total Part Build Rating . | . . Part Studies Acquired . | . . Parts Repaired . | . . Time . | . . Parts Recycled . | . . Recycled Matter . | . . Retrieved Matter . | . . Retrieved Components . | . . Parts Scanalyzed . | . . Part Schematics Acquired . | . . Parts Damaged . | . . Bothacking | -11 -10 ------------ Run | Yrd Mat Used RIF Installer . | . . Robots Hacked . | . . Non-combat . | . . Combat . | . . Robot Hacks Applied . | . . Relay Couplers Released . | . . Fabnet Peak Effective % . | . . Robots Rewired . | . . Allies Hacked . | . . Hacks Repelled . | . . Allies | -11 -10 -------- Run | Yrd Mat Total Allies . | . . Largest Group . | . . Highest-Rated Group . | . . Highest-Rated Ally . | . . Total Orders . | . . Ally Attacks . | . . Total Damage . | . . Kills . | . . Allies Corrupted . | . . Allies Melted . | . . Intel | -11 -10 ------- Run | Yrd Mat Active Infowar (turns) 266 | 58 208 Terrain 266 | 58 208 Robot Analysis Total . | . . Derelict Logs Recovered . | . . Drone Launches . | . . Drone Recoveries . | . . Exploration | -11 -10 ------------- Run | Yrd Mat Turns Passed 1138 | 211 927 Spaces Moved 565 | 136 429 Core 22 | 22 . Treads . | . . Legs 218 | 114 104 Wheels 325 | . 325 Hover . | . . Flight . | . . Fastest Speed 50 | 50 100 Average Speed 147 | 108 160 Slowest Speed 680 | 120 680 Overloaded Moves . | . . Propulsion Burnouts . | . . Robots Hopped . | . . Potential Cave-ins . | . . Cave-ins Triggered . | . . Exploration Rate (%) 38 | 7 69 Regions Visited 1 Branch Regions . Pre-discovered Areas . | . . Known Exits Taken . | . . Unknown Exits Taken 1 | 1 . Scrap Searched . | . . Spaces Dug . | . . Terrain Destroyed 23 | . 23 Melee . | . . Projectile . | . . AOE 23 | . 23 Terrain Rammed . | . . Walls Destroyed . | . . Machines Disabled . | . . Actions | -11 -10 --------- Run | Yrd Mat Total 732 | 161 571 Wait 11 | . 11 Move 564 | 135 429 Hop . | . . Pick Up 17 | 2 15 Fast Attach 15 | 7 8 Attach 5 | . 5 Detach 1 | . 1 Swap 5 | . 5 Drop 15 | . 15 Fire 99 | 17 82 Melee . | . . Ram . | . . Kick . | . . Crush . | . . Escape Stasis . | . . Rewire . | . . Trap . | . . Miscellaneous . | . . Route ------- -11/Scrapyard -10/Materials (discovered 3 exits: [*Mat x2] / [*Min]) History --------- Turn | Location | Event 2 | -11/Scrapyard | Met Revision 17 71 | -11/Scrapyard | Discovered new exit (range 8) 212 | -11/Scrapyard | Entered Materials 328 | -10/Materials | Build established: Mutant 393 | -10/Materials | Discovered new exit (range 14) 788 | -10/Materials | Discovered new exit (range 16) 894 | -10/Materials | Core integrity fell below 50% 983 | -10/Materials | Core integrity fell below 20% 1004 | -10/Materials | Discovered new exit (range 5) 1139 | -10/Materials | Destroyed self via exploding Nuclear Reactor Last Messages --------------- G-34 Mercenary destroyed. K-01 Serf collects debris. K-01 Serf destroyed. K-01 Serf collects debris. Acquired 10 matter. Grenade Launcher destroyed. G-34 Mercenary destroyed. T-07 Excavator destroyed. EXIT=FOUND T-07 Excavator is excavating. Acquired Datajack. T-07 Excavator is excavating. O-16 Technician: "IFF HANDSHAKE FAILED. SECURING TERMINAL." ALERT: Hostiles spotted, dispatching reinforcements to Terminal M008. Com. Wheel destroyed. Lgt. Nuclear Core destroyed. Nuclear Reactor explodes. G-34 Mercenary destroyed. Map ----- +----------------------------------------------------+ | ??????????????????????# # #???????? | | ??????????????????????# #????????? | | ???????????????######## # #?????#### | | ???????????????# # #####?????# | | ???????????????# """ # #?????????# < | | ???????????????# """ # #?????????# | | ???????????????# """ # ########### | | ???????????????# # | | ???????????????# + | | ???????????????# # | | ???????????????# / # #####+######## | | ???????????????# /[ # ## | | ???????????????# # ## | | ???????????????# # ## | | ???????????????# [ # ## !! | | ???????????????# # ## !! | | ???????????????######## ## | | ?????????????????????# ############# | | ???# ##+#############! | | ???# " | | ???# | | ???????####### ####### #### ######## | | ?????????????# #?????#######??# #??????? | | ?????????????# #??????????????# #??????? | | ??????????####+###??????####### #??????? | | ??????????# @ #?????# # #??????? | | ??????????# #?????# # #??????? | | ??????????#^ #?????# """ # #??????? | | ??????????# % #?????# """ # #??????? | | ??????????# #?????? """ # #?#????? | | ??????????# #???????? # #??????? | | ??????????####+#############+## #??????? | | ??????????? #??????? | | ??????????? < #??#???? | | ??????????? #??????? | | ????????????################# #??????? | | ??????????????????# * ! # #???#### | | ??????????????????# # #???#??? | | ??????????????????# """ """ + ######## | | ??????????????????# """ """ # | | ??????????????????# """ """ # ! | | ??????????????????# """ """ # | | #########?????????# ######% | | # #?????????# #????# ! | | #"" """ #?????????##+########??#?# | | #"T """ #??????????#%##??????????#! | | #"" """ #??????????# #?????#?? ??# " | | # #??????????# #???????????# " | | # !! #??????????# #???????????# " | | # !![######???### ##???????"??# | +----------------------------------------------------+ Best States ------------- Heat Dissipation 39 Energy Generation 14 Energy Capacity 160 Matter Stores 350 Matter Capacity 350 Sight Range 16 Terrain Scan Range 16 Terrain Scan Density 10 Evasion (%) 55 Offensive Hacking 10 Item Schematics ----------------- None Robot Schematics ------------------ None Fabricated ------------ Nothing Repaired ---------- Nothing Studied --------- None Alien Tech Used ----------------- None Achievements -------------- DATA ERROR: Steam Global Achievement% Overwhelming Challenges ------------ None Game ------ Seed ReflectiveDeflectorChainsaw Manual? 0 Play Time 00:18:10 Cumulative 1.3 hours Start 2026.01.25 @ 18:09:16 End 2026.01.25 @ 18:32:08 Sessions 2 Manual Loads 0 Difficulty Rogue Special Mode None Game No. 2 Rogue 2 Adventurer 0 Explorer 0 Win Type - Total 0 Types 0/0/0/0/0/0/0/0/0/0 Lore% 0 Gallery% 2 Achievement% 4 Wizard Run 0 Options --------- Layout 1 ASCII 0 Keyboard 0 Movement Numpad Keybinds 0 Fullscreen 2 Font 24/Smallcaps Map View 50x35 Zoom Use 0% Tactical HUD 0 Map Filters NONE Filters NONE Steam 1 RUN: 5a85f9df-692a-448a-a0f4-562dbcf03f96